Cogmind - Beta 16 --- EXPLORER MODE // 2026.01.23 @ 07:09:17 Player: viper Result: Self-destructed Performance ------------- Evolutions (6) 3000 Regions Visited (11) 2200 Robots Destroyed (353) 1765 Value Destroyed (12796) 12796 Prototype IDs (19) 380 Alien Tech Used (0) 0 Bonus (556) 556 TOTAL SCORE: 20697 Bonus ------- Follower Combat Kills 74 Entered DSFs 500 Friendly Fire -18 Cogmind --------- Core Integrity 853/1150 Matter 25/550 Energy 365/365 System Corruption 5% Temperature Cool (0) Movement Walking (182) Ox1 Location -4/Factory Parts ------- > --- POWER (3) -------- Micro Nuclear Core Neutrino Core > --- PROPULSION (4) --- Flexi-carbon Leg Myomer Leg > --- UTILITY (9) ------ Advanced Thermal Generator Advanced Heat Sink Large Storage Unit Matter Compressor Improved Targeting Computer Improved Target Analyzer Improved Target Analyzer Armor Integrity Analyzer > --- WEAPON (4) ------- Coil Gun Long-range Missile Launcher > --- INVENTORY (15) --- Reinforced Deuterium Engine Neutrino Core Advanced Heat Sink Improved Targeting Computer Backup Plating I Gauss Cannon Gauss Cannon Mass Driver Lance Peak State ------------ > --- POWER ------------ Micro Nuclear Core Micro Nuclear Core Neutrino Core > --- PROPULSION ------- Improved Carbon-fiber Leg Flexi-carbon Leg Myomer Leg Shield Leg > --- UTILITY ---------- Advanced Thermal Generator Advanced Heat Sink Large Storage Unit Matter Compressor Advanced Weight Redist. System Improved Targeting Computer Improved Target Analyzer Improved Target Analyzer Armor Integrity Analyzer > --- WEAPON ----------- Coil Gun KE Penetrator Mass Driver Hardcell Cannon > --- INVENTORY -------- Reinforced Deuterium Engine Neutrino Core Advanced Heat Sink Improved Targeting Computer Backup Plating I Gauss Cannon Gauss Cannon Mass Driver Long-range Missile Launcher Lance [Rating: 102] Favorites ----------- Power Heavy Ion Engine Engine Heavy Ion Engine Power Core Light Nuclear Core Propulsion Advanced Treads Treads Advanced Treads Leg Improved Carbon-fiber Leg Utility Structural Scanner Device Structural Scanner Storage Cargo Storage Unit Processor Experimental Targeting Computer Hackware Makeshift System Shield Protection Light Regenerative Plating Weapon Enhanced Autogun Ballistic Gun Enhanced Autogun Ballistic Cannon Gauss Cannon Launcher Long-range Missile Launcher Special Weapon Plasma Cutter Impact Weapon Great Maul Build | -11 -10 -10 -8 -8 -7 -7 -7 -6 -6 -5 -4 ------- Run | Yrd Mat Sub Mat Sto Fac Low Low Fac DSF Fac Fac Slots Evolved 13 | . 1 . 4 . 2 . . 2 . 2 2 Power 2 | . . . 1 . . . . 1 . . . Propulsion 2 | . . . 1 . . . . 1 . . . Utility 7 | . 1 . 2 . . . . . . 2 2 Weapon 2 | . . . . . 2 . . . . . . Parts Attached 153 | 7 7 . 17 13 33 2 9 . 19 23 23 Power 28 | 1 1 . 3 5 8 . 1 . 2 5 2 Engine 12 | 1 1 . . 4 2 . 1 . 1 2 . Core 16 | . . . 3 1 6 . . . 1 3 2 Reactor . | . . . . . . . . . . . . Propulsion 35 | 2 3 . 4 1 7 . 5 . 3 7 3 Treads 7 | . . . 4 1 2 . . . . . . Leg 28 | 2 3 . . . 5 . 5 . 3 7 3 Wheel . | . . . . . . . . . . . . Hover . | . . . . . . . . . . . . Flight . | . . . . . . . . . . . . Utility 49 | 2 3 . 4 4 5 2 2 . 7 8 12 Device 19 | . 1 . . . 4 . 1 . 1 5 7 Storage 8 | 1 1 . 2 1 . . . . 2 . 1 Processor 12 | 1 1 . 1 1 1 1 . . 1 2 3 Hackware 2 | . . . . . . 1 . . 1 . . Protection 8 | . . . 1 2 . . 1 . 2 1 1 Artifact . | . . . . . . . . . . . . Weapon 41 | 2 . . 6 3 13 . 1 . 7 3 6 Energy Gun . | . . . . . . . . . . . . Energy Cannon . | . . . . . . . . . . . . Ballistic Gun 24 | 2 . . 3 2 11 . 1 . 2 2 1 Ballistic Cannon 13 | . . . 2 . 1 . . . 4 1 5 Launcher 1 | . . . . . . . . . 1 . . Special Weapon 1 | . . . 1 . . . . . . . . Impact Weapon 2 | . . . . 1 1 . . . . . . Slashing Weapon . | . . . . . . . . . . . . Piercing Weapon . | . . . . . . . . . . . . Special Melee Weapon . | . . . . . . . . . . . . Unidentified Prototypes 8 | . . . 1 3 1 . . . . . 3 Parts Lost 68 | . . . . 3 10 . 18 . 2 7 28 Power 10 | . . . . . . . 3 . . 1 6 Propulsion 18 | . . . . . 5 . 3 . . 3 7 Utility 20 | . . . . 2 1 . 4 . 2 3 8 Weapon 20 | . . . . 1 4 . 8 . . . 7 Highest Loss Streak 18 | . . . . 2 2 . 18 . 2 3 8 To Critical Strikes 3 | . . . . . 2 . 1 . . . . Average Backups 19 | 1 8 11 11 18 24 30 20 10 10 10 13 Power 6 | . 1 2 1 3 9 12 10 9 6 4 4 Propulsion 3 | . 2 3 2 3 3 6 3 . 1 2 1 Utility 3 | . 3 4 1 3 5 4 2 . 1 . 1 Weapon 6 | . 1 2 5 7 6 8 4 1 1 4 6 Tool/Special . | . . . . . . . . . . . . Unused Backups 17 | . 6 . 3 . 2 . . . 3 . 3 Power 2 | . . . 1 . . . . . 1 . . Propulsion 2 | . 2 . . . . . . . . . . Utility 4 | . . . . . 1 . . . 2 . 1 Weapon 6 | . 1 . 2 . 1 . . . . . 2 Tool/Special 3 | . 3 . . . . . . . . . . Average Slot Usage (%) 92 | . 99 100 99 92 91 91 84 92 95 90 83 Engine 11 | . 12 12 5 15 10 14 8 12 12 10 2 Core 3 | . . . 10 . 3 . 4 6 5 5 9 Treads 11 | . . . 19 24 11 . . . . . . Leg 10 | . 25 25 5 . 9 21 19 24 25 21 13 Device 9 | . 3 12 7 8 12 13 7 . 1 6 9 Storage 9 | . 12 12 9 10 7 7 9 12 13 16 14 Processor 8 | . 21 12 14 6 7 7 3 . 2 4 13 Protection 4 | . . . 7 8 1 . 6 12 8 7 1 Ballistic Gun 19 | . 24 25 8 15 27 28 19 18 13 2 5 Ballistic Cannon 2 | . . . 7 . . . 3 6 9 13 12 Peak Build Rating 102 | 7 9 9 34 43 64 64 63 53 70 84 102 Average Rating 49 | 5 8 9 26 40 55 62 49 52 61 69 77 On Entrance 39 | . 7 9 9 34 42 63 63 47 53 64 79 Avg Prop Armor Cover (%) 7 | 18 8 . 10 . 8 . . . 3 4 3 Naked Turns . | . . . . . . . . . . . . Heaviest Build 195 | 19 30 30 46 170 179 179 183 191 195 90 92 Greatest Support 97 | 20 20 20 66 66 66 56 56 72 72 74 97 Greatest Overweight (x) 13 | 6 6 1 13 2 9 3 4 2 2 2 6 Average Overweight (x) 1 | . . 1 . 1 2 3 2 2 1 1 1 Largest Inventory Capacity 30 | 10 15 15 15 30 30 30 30 30 30 15 15 Average Capacity 24 | 8 12 15 15 27 30 30 30 30 17 15 15 Most Carried 30 | 4 11 11 14 20 30 30 30 11 20 15 15 Average Carried 19 | 1 8 11 11 18 24 30 20 10 10 10 13 Final Capacity 30 | 10 15 15 15 30 30 30 30 30 15 15 15 Final Carried 30 | 4 11 11 14 17 30 30 12 10 4 15 9 Class Distribution -------------------- 43% | Hauler-Gunner 20% | Hacker-Mutant 16% | Hauler-Mutant 9% | Scavenger-Gunner 5% | Commander-Mutant Dominant Class ---------------- Hacker-Mutant | -10/Materials Hacker-Mutant | -10/Subcaves Hacker-Mutant | -8/Materials Hauler-Mutant | -8/Storage Hauler-Gunner | -7/Factory Hauler-Gunner | -7/Lower Caves Hauler-Gunner | -7/Lower Caves Hauler-Tank | -6/Factory Hauler-Tank | -6/DSF Scavenger-Gunner | -5/Factory Scavenger-Gunner | -4/Factory Resources | -11 -10 -10 -8 -8 -7 -7 -7 -6 -6 -5 -4 ----------- Run | Yrd Mat Sub Mat Sto Fac Low Low Fac DSF Fac Fac Matter Collected 12385 | 197 564 54 1197 1651 4302 227 567 . 463 2185 978 Remotely . | . . . . . . . . . . . . Salvage Created 14512 | . 785 110 1274 2626 5905 129 551 . 537 1576 1019 Parts 735 | . 45 11 69 156 319 1 19 . 18 51 46 Haulers Intercepted 16 | . 1 . 4 6 4 . . . . . 1 Recyclers Shooed 7 | . 2 . 1 3 1 . . . . . . Parts Field Recycled . | . . . . . . . . . . . . Retrieved Matter . | . . . . . . . . . . . . Parts Self-Destructed . | . . . . . . . . . . . . Prevented . | . . . . . . . . . . . . Parts Restored . | . . . . . . . . . . . . Kills | -11 -10 -10 -8 -8 -7 -7 -7 -6 -6 -5 -4 ------- Run | Yrd Mat Sub Mat Sto Fac Low Low Fac DSF Fac Fac Combat Hostiles Destroyed 250 | . 13 2 23 39 87 1 13 . 10 35 27 Melee 3 | . . . . . . . 3 . . . . Guns 173 | . 13 2 13 39 84 1 7 . 5 3 6 Cannons 70 | . . . 10 . 3 . 3 . 5 32 17 AOE 3 | . . . . . . . . . . . 3 Classes Destroyed 21 | . 7 1 4 3 3 . . . 2 . 1 Worker 33 | . 3 . 4 13 9 . . . . 2 2 Builder 18 | . 2 . . 4 10 . . . . 2 . Tunneler 1 | . . . . . 1 . . . . . . Hauler 16 | . 1 . 4 6 4 . . . . . 1 Recycler 28 | . 3 . 4 4 14 . . . . 3 . Mechanic 1 | . . . . 1 . . . . . . . Operator 3 | . . . 1 1 1 . . . . . . Watcher 11 | . 2 . 2 2 5 . . . . . . Swarmer 36 | . 6 . 5 5 11 . 2 . 2 2 3 Grunt 104 | . 7 . 11 14 44 . 6 . 3 16 3 Brawler 7 | . . . 2 . 1 . 3 . . 1 . Duelist 3 | . . . . . 1 . 1 . . 1 . Sentry 29 | . . . 4 7 9 . 1 . . 5 3 Demolisher 2 | . . . . 2 . . . . . . . Specialist 4 | . . . . . . . . . 2 . 2 Hunter 24 | . . . 1 3 7 1 . . . 4 8 Programmer 29 | . . . . . 14 . . . 2 6 7 Heavy 1 | . . . . . . . . . 1 . . Behemoth 1 | . . . . . . . . . . . 1 Subdweller 2 | . . 2 . . . . . . . . . Assembled 8 | . . . . 8 . . . . . . . Best Kill Streak 8 | . 4 2 6 8 8 1 7 . 4 7 6 Combat Bots Only 8 | . 3 2 5 8 8 1 7 . 4 6 4 Max Kills in Single Turn 3 | . 2 1 2 2 2 1 2 . 1 3 2 Gunslinging 1 | . 1 . 1 1 1 . 1 . . . . Exploded 1 | . . . . . . . . . . . 1 Melee 1 | . . . . . . . 1 . . . . Uniques/NPCs Destroyed . | . . . . . . . . . . . . Combat | -11 -10 -10 -8 -8 -7 -7 -7 -6 -6 -5 -4 -------- Run | Yrd Mat Sub Mat Sto Fac Low Low Fac DSF Fac Fac Hostile Shots Fired 1425 | . 33 10 117 129 416 14 213 . 75 167 251 Missed 393 | . 14 6 30 33 123 4 39 . 18 53 73 Hits 1032 | . 19 4 87 96 293 10 174 . 57 114 178 Melee 29 | . . . 1 2 2 . 24 . . . . Projectile 1003 | . 19 4 86 94 291 10 150 . 57 114 178 AOE 15 | . . . . 14 1 . . . . . . Critical Strikes 48 | . . . 2 3 6 . 14 . 5 7 11 Actively Blocked 2 | . . . 1 . . . 1 . . . . Part Disruptions 2 | . . . . 1 1 . . . . . . Damage Taken 12157 | . 142 56 758 1157 2653 117 2154 . 831 1675 2614 Core 1528 | . 45 . 96 152 218 23 300 . 139 258 297 Absorbed by Shields . | . . . . . . . . . . . . Redirected to Shielding 150 | . . . 48 2 . . 41 . 22 37 . Ignored by Resistances 7034 | . 95 33 475 696 1637 72 1274 . 423 794 1535 Regen/Repaired (Parts) 490 | . 22 . 56 326 12 . . . . . 74 Core Remaining (%) 69 | 100 . 82 . 54 . . 22 . 83 74 . Volleys Fired 741 | . 50 9 88 167 221 5 29 . 24 90 58 Largest 4 | . 2 2 2 2 4 4 4 . 4 4 4 Hottest 182 | . 40 40 74 50 115 112 124 . 126 160 182 Shots Fired 2162 | . 102 18 175 333 872 24 78 . 93 246 221 Gun 1652 | . 102 18 108 333 853 24 49 . 69 29 67 Cannon 507 | . . . 67 . 19 . 29 . 24 217 151 Launcher 3 | . . . . . . . . . . . 3 Special . | . . . . . . . . . . . . Kinetic 2159 | . 102 18 175 333 872 24 78 . 93 246 218 Thermal . | . . . . . . . . . . . . Explosive 3 | . . . . . . . . . . . 3 Electromagnetic . | . . . . . . . . . . . . Robot Hit Streak 61 | . 20 16 42 38 61 32 18 . 27 51 32 Robot Miss Streak 7 | . 2 1 2 3 3 . 1 . 7 5 3 Penetration Max 1 | . . . . . . . . . . 1 1 Secondary Targets 34 | . 2 1 4 6 15 . 6 . . . . Max Gunslinging Chain 2 | . 1 1 1 1 1 . 2 . . . . Shots Hit Robots 1688 | . 81 16 146 275 660 20 76 . 72 180 162 Core Hits 675 | . 35 5 55 114 250 6 30 . 37 75 68 Critical Kills 7 | . 1 . . . 2 . 1 . . 1 2 Critical Parts Destroyed 14 | . . 1 . 2 5 . 1 . . 1 4 Critical Strikes 65 | . 1 1 2 2 7 . 2 . 1 29 20 Destroy 20 | . 1 1 . 2 7 . 1 . . 2 6 Blast 44 | . . . 2 . . . . . 1 27 14 Smash 1 | . . . . . . . 1 . . . . Melee Attacks 58 | . . . . 50 1 . 7 . . . . Impact 58 | . . . . 50 1 . 7 . . . . Slashing . | . . . . . . . . . . . . Piercing . | . . . . . . . . . . . . Sneak Attacks . | . . . . . . . . . . . . Combat Hostiles . | . . . . . . . . . . . . Follow-up Attacks . | . . . . . . . . . . . . Damage Inflicted 36038 | . 1033 208 3062 4647 12167 284 1825 . 1483 5563 5766 Guns 23585 | . 1033 208 1657 4622 11832 284 938 . 1142 535 1334 Cannons 11037 | . . . 1405 . 309 . 572 . 341 4893 3517 Explosions 980 | . . . . . . . . . . 80 900 Melee 315 | . . . . . . . 315 . . . . Ramming 121 | . . . . 25 26 . . . . 55 15 Kinetic 34622 | . 1033 208 3062 4622 12141 284 1510 . 1483 5428 4851 Thermal 434 | . . . . . . . . . . . 434 Explosive 546 | . . . . . . . . . . 80 466 Electromagnetic . | . . . . . . . . . . . . Impact 315 | . . . . . . . 315 . . . . Slashing . | . . . . . . . . . . . . Piercing . | . . . . . . . . . . . . Highest Corruption 11 | . 1 1 . . 10 10 11 . 2 5 5 Average Corruption 5 | . 1 1 . . 5 10 10 . 1 2 3 Corruption Purged . | . . . . . . . . . . . . Corruption Blocked . | . . . . . . . . . . . . Effects 339 | . 12 1 . . 201 56 20 . 8 22 19 Message Errors 67 | . 3 . . . 44 10 1 . 3 4 2 Matter Fused 71 | . 1 1 . . 43 8 6 . . 5 7 Heat Flow Errors 39 | . 2 . . . 20 8 2 . 2 2 3 Energy Discharges 51 | . 2 . . . 29 9 2 . 2 5 2 Parts Rejected 2 | . . . . . 2 . . . . . . Parts Fused 3 | . . . . . . 1 . . . 1 1 Data Loss (minor) 44 | . 2 . . . 26 9 3 . . 2 2 Data Loss (major) 20 | . . . . . 12 5 1 . . 2 . Misfires 25 | . 2 . . . 15 5 2 . . . 1 Alerts 6 | . . . . . 5 . 1 . . . . Weapon Failures 11 | . . . . . 5 1 2 . 1 1 1 Overload Shots . | . . . . . . . . . . . . Overflow Damage 433 | . . . 39 3 18 . 101 . . 130 142 Projectiles 307 | . . . 39 . 18 . 5 . . 130 115 Explosions 27 | . . . . . . . . . . . 27 Melee 99 | . . . . 3 . . 96 . . . . Knockbacks 93 | . . . 12 . 3 . 8 . 5 45 20 Impact 2 | . . . . . . . 1 . . 1 . Kinetic 84 | . . . 9 . 2 . 7 . 4 43 19 Secondary 7 | . . . 3 . 1 . . . 1 1 1 Self-Inflicted Damage 314 | . . . . . 215 . . . . . 99 Shots 6 | . . . . . 4 . . . . . 2 Rammed 3 | . . . . 1 . . . . . . 2 Targets Rammed 12 | . . . . 1 3 . . . . 4 4 Kicked 9 | . . . . . 3 . . . . 4 2 Crushed . | . . . . . . . . . . . . Highest Temperature 1982 | . 223 . 434 382 436 265 343 . 1982 501 495 Average Temperature 120 | . 88 . 84 68 96 91 158 . 360 136 148 Received Heat Transfer 4227 | . 90 12 477 500 864 . 1197 . 306 486 295 Effects 82 | . 2 . 3 3 19 . 1 . 40 7 7 Shutdowns 26 | . . . 2 . 4 . . . 18 2 . Energy Bleed 10 | . . . . 1 3 . . . 4 2 . Interference 20 | . 2 . . 2 9 . . . 3 . 4 Matter Decay 1 | . . . . . 1 . . . . . . Short Circuit 9 | . . . 1 . . . 1 . 5 1 1 Damage (minor) 2 | . . . . . . . . . 1 1 . Damage (major) 12 | . . . . . 2 . . . 8 . 2 Damage (core) 2 | . . . . . . . . . 1 1 . Siege Activations . | . . . . . . . . . . . . Martial Activations . | . . . . . . . . . . . . Shielding Activations . | . . . . . . . . . . . . Robots Disrupted . | . . . . . . . . . . . . Combat Hostiles . | . . . . . . . . . . . . Robots Corrupted 1 | . . . . 1 . . . . . . . Combat Hostiles . | . . . . . . . . . . . . Parts Fried 2 | . . . . 1 . . 1 . . . . Impact Corruptions 3 | . . . . 1 . . 2 . . . . Robots Melted . | . . . . . . . . . . . . Combat Hostiles . | . . . . . . . . . . . . Parts Melted 2 | . . . 2 . . . . . . . . Heat Transferred 300 | . . . . . . . . . . . 300 Parts Sabotaged . | . . . . . . . . . . . . Parts Stolen . | . . . . . . . . . . . . Parts Stripped . | . . . . . . . . . . . . Power Chain Reactions . | . . . . . . . . . . . . Alert | -11 -10 -10 -8 -8 -7 -7 -7 -6 -6 -5 -4 ------- Run | Yrd Mat Sub Mat Sto Fac Low Low Fac DSF Fac Fac Maximum Alert Level 1 | . . . . . 1 . . . 1 1 1 Low Security (%) 95 | 100 100 . 100 100 96 . . 100 62 80 83 Level 1 4 | . . . . . 3 . . . 37 19 16 Level 2 . | . . . . . . . . . . . . Level 3 . | . . . . . . . . . . . . Level 4 . | . . . . . . . . . . . . Level 5 . | . . . . . . . . . . . . High Security . | . . . . . . . . . . . . Max Security . | . . . . . . . . . . . . Sterilizations 1 | . . . . . . . . . 1 . . Peak Influence 380 | . 57 . 114 71 262 . . . 255 311 380 Initial 99 | . . . . . . . . . . 99 68 Average 31 | . 6 . 26 6 25 . . . 134 80 106 Influence Increases 7966 | . 394 . 697 1163 2721 60 300 . 275 1171 1185 Destroy 0b10 Robot/C 4860 | . 260 . 460 640 1740 40 280 . 200 700 540 Destroy 0b10 Robot/NC 580 | . 55 . 75 175 220 . . . 5 35 15 Destroy Leader 1334 | . 66 . 122 206 528 20 20 . 50 160 162 Allied During Kill 22 | . . . . 22 . . . . . . . Successful Hack 262 | . 12 . 18 62 106 . . . . 43 21 Disable Machine 168 | . . . . 20 32 . . . 4 44 68 Destroy Structure 635 | . 1 . 7 8 80 . . . 1 174 364 Partial Spotted 15 | . . . . . . . . . . 15 . Lose Combat Pursuer 90 | . . . 15 30 15 . . . 15 . 15 Influence Decreases 7891 | . 394 . 697 1163 2721 60 300 . 20 1235 1301 Entered New Map 279 | . . . . . . . . . . 156 123 Time Decay 6964 | . 394 . 697 1103 2661 60 140 . . 1009 900 Lost Part 608 | . . . . 20 60 . 160 . 20 70 278 Lost Ally 40 | . . . . 40 . . . . . . . Squads Dispatched 89 | . 2 . 5 11 43 . 1 . 2 13 12 Investigation 40 | . 2 . 4 11 16 . . . . 4 3 Extermination 21 | . . . . . 14 . . . . 4 3 Reinforcement 12 | . . . 1 . 4 . . . 2 2 3 Assault 1 | . . . . . . . 1 . . . . Garrison 15 | . . . . . 9 . . . . 3 3 Intercept . | . . . . . . . . . . . . Searches Triggered . | . . . . . . . . . . . . Construction Impeded 5 | . . . . . 4 . . . . 1 . Haulers Reinforced . | . . . . . . . . . . . . Active Scanning Responses . | . . . . . . . . . . . . Cargo Convoy Interrupts 1 | . . . . . . . . . . . 1 Stealth | -11 -10 -10 -8 -8 -7 -7 -7 -6 -6 -5 -4 --------- Run | Yrd Mat Sub Mat Sto Fac Low Low Fac DSF Fac Fac Distress Signals 4 | . 2 . . . 1 . . . . 1 . Communications Jammed . | . . . . . . . . . . . . Distress Signals . | . . . . . . . . . . . . Times Spotted 291 | . 17 2 28 53 95 2 15 . 12 36 31 Peak Tracking Total 11 | . 2 2 6 11 3 1 10 . 4 4 4 Tactical Retreats 8 | . . . 1 4 1 . . . 1 . 1 Traps | -11 -10 -10 -8 -8 -7 -7 -7 -6 -6 -5 -4 ------- Run | Yrd Mat Sub Mat Sto Fac Low Low Fac DSF Fac Fac Traps Triggered 19 | . 1 . 3 . 8 . . . 4 3 . Indirectly 2 | . . . . . . . . . . 2 . Trap Hack Attempts . | . . . . . . . . . . . . Triggered . | . . . . . . . . . . . . Disarmed 8 | . . . . 2 6 . . . . . . Reprogrammed . | . . . . . . . . . . . . Reused . | . . . . . . . . . . . . Traps Extracted . | . . . . . . . . . . . . Installed . | . . . . . . . . . . . . Triggered . | . . . . . . . . . . . . Machines | -11 -10 -10 -8 -8 -7 -7 -7 -6 -6 -5 -4 ---------- Run | Yrd Mat Sub Mat Sto Fac Low Low Fac DSF Fac Fac Machines Disabled 43 | . . . . 5 8 . . . 2 11 17 Max in Single Turn 6 | . . . . 1 2 . . . 1 6 4 Garrison Access 2 | . . . . 1 . . . . . . 1 Machines Repaired . | . . . . . . . . . . . . Machines Dismantled . | . . . . . . . . . . . . Machines Sabotaged . | . . . . . . . . . . . . Overloaded Fab Kills . | . . . . . . . . . . . . Hacking | -11 -10 -10 -8 -8 -7 -7 -7 -6 -6 -5 -4 --------- Run | Yrd Mat Sub Mat Sto Fac Low Low Fac DSF Fac Fac Machines Accessed 65 | . 8 . 9 18 18 1 . 1 . 5 5 Terminals 42 | . 6 . 6 14 11 . . 1 . 2 2 Fabricators 3 | . . . . . 1 . . . . 1 1 Repair Stations 7 | . 1 . 1 2 2 . . . . . 1 Recycling Units 3 | . 1 . 1 1 . . . . . . . Scanalyzers 4 | . . . 1 . 2 . . . . 1 . Garrison Access 5 | . . . . 1 2 . . . . 1 1 Total Hacks 220 | . 25 . 38 67 59 1 . 1 . 17 12 Successful 148 | . 18 . 34 45 33 1 . 1 . 11 5 Failed 72 | . 7 . 4 22 26 . . . . 6 7 Catastrophic 4 | . 1 . . . 1 . . . . . 2 Database Lockouts . | . . . . . . . . . . . . Manual 2 | . . . 1 1 . . . . . . . Terminals 144 | . 20 . 24 49 38 . . 1 . 8 4 Fabricators 10 | . . . . . 3 . . . . 3 4 Repair Stations 24 | . 2 . 4 10 6 . . . . . 2 Recycling Units 11 | . 3 . 3 5 . . . . . . . Scanalyzers 19 | . . . 7 . 9 . . . . 3 . Garrison Access 11 | . . . . 3 3 . . . . 3 2 Terminal Hacks 102 | . 14 . 20 33 24 1 . 1 . 8 1 Record 27 | . 7 . 3 8 6 . . . . 3 . Part Schematic 4 | . . . . 1 1 . . . . 2 . Robot Schematic 3 | . . . . 1 1 . . . . . 1 Robot Analysis 2 | . . . . 1 1 . . . . . . Prototype ID Bank 6 | . . . 1 4 1 . . . . . . Open Door 6 | . . . . 5 . 1 . . . . . Open DSF 1 | . . . . . . . . 1 . . . Branch Access Points 2 | . . . 1 . . . . . . 1 . Emergency Access Points 4 | . 2 . 2 . . . . . . . . Terminal Index 3 | . 1 . 1 . 1 . . . . . . Repair Station Index 1 | . . . . . 1 . . . . . . Alert Level 2 | . . . 1 . . . . . . 1 . Locate Traps 10 | . . . 2 5 3 . . . . . . Disarm Traps 2 | . . . . 1 1 . . . . . . Dispatch Records 2 | . 1 . 1 . . . . . . . . Maintenance Status 3 | . . . 1 1 1 . . . . . . Security Status 1 | . . . . 1 . . . . . . . Surveillance Status 1 | . . . 1 . . . . . . . . Patrol Status 1 | . . . 1 . . . . . . . . Transport Status 2 | . 1 . 1 . . . . . . . . Investigation Status 1 | . . . . . 1 . . . . . . Extermination Status 1 | . . . . 1 . . . . . . . Reinforcement Status 1 | . . . . 1 . . . . . . . Recall Assault 1 | . . . . . . . . . . 1 . Hauler Manifests 3 | . 1 . 1 1 . . . . . . . Registered Components 1 | . . . . 1 . . . . . . . Zone Layout 11 | . 1 . 3 1 6 . . . . . . Fabricator Hacks 5 | . . . . . 2 . . . . 2 1 Load Schematic 3 | . . . . . 1 . . . . 1 1 Build 2 | . . . . . 1 . . . . 1 . Repair Station Hacks 16 | . 2 . 4 6 2 . . . . . 2 Scan Component 10 | . 1 . 2 4 2 . . . . . 1 Repair 6 | . 1 . 2 2 . . . . . . 1 Recycling Unit Hacks 10 | . 2 . 3 5 . . . . . . . Recycle Component 6 | . 1 . 2 3 . . . . . . . Process 4 | . 1 . 1 2 . . . . . . . Scanalyzer 12 | . . . 7 . 4 . . . . 1 . Insert Component 2 | . . . 1 . 1 . . . . . . Analyze 2 | . . . 1 . 1 . . . . . . Retrieve Study 8 | . . . 5 . 2 . . . . 1 . Garrison Access Hacks 3 | . . . . 1 1 . . . . . 1 Unlock Access 1 | . . . . . 1 . . . . . . Seal Access 2 | . . . . 1 . . . . . . 1 Unauthorized Hacks . | . . . . . . . . . . . . Terminals . | . . . . . . . . . . . . Fabricators . | . . . . . . . . . . . . Repair Stations . | . . . . . . . . . . . . Recycling Units . | . . . . . . . . . . . . Scanalyzers . | . . . . . . . . . . . . Garrison Access . | . . . . . . . . . . . . Data Cores Recovered 1 | . . . . 1 . . . . . . . Used . | . . . . . . . . . . . . Hacking Detections 55 | . 7 . 7 16 17 . . . . 5 3 Full Trace Events 45 | . 4 . 6 12 16 . . . . 4 3 Feedback Events 4 | . 1 . . . 2 . . . . 1 . Corruption 4 | . 1 . . . 2 . . . . 1 . Feedback Blocked . | . . . . . . . . . . . . Robot Schematics Acquired 3 | . . . . 1 1 . . . . . 1 Robots Built 6 | . . . . . 3 . . . . 3 . Authchips . | . . . . . . . . . . . . Time 98 | . . . . . 49 . . . . 49 . Total Robot Build Rating 12 | . . . . . 6 . . . . 6 . Part Schematics Acquired 6 | . . . 1 1 2 . . . . 2 . Parts Built . | . . . . . . . . . . . . Authchips . | . . . . . . . . . . . . Time . | . . . . . . . . . . . . Total Part Build Rating . | . . . . . . . . . . . . Part Studies Acquired 8 | . . . 5 . 2 . . . . 1 . Parts Repaired 6 | . 1 . 2 2 . . . . . . 1 Time 207 | . 26 . 64 79 . . . . . . 38 Parts Recycled 6 | . 1 . 2 3 . . . . . . . Recycled Matter 393 | . 41 . 122 230 . . . . . . . Retrieved Matter . | . . . . . . . . . . . . Retrieved Components . | . . . . . . . . . . . . Parts Scanalyzed 2 | . . . 1 . 1 . . . . . . Part Schematics Acquired 2 | . . . 1 . 1 . . . . . . Parts Damaged . | . . . . . . . . . . . . Bothacking | -11 -10 -10 -8 -8 -7 -7 -7 -6 -6 -5 -4 ------------ Run | Yrd Mat Sub Mat Sto Fac Low Low Fac DSF Fac Fac Used RIF Installer . | . . . . . . . . . . . . Robots Hacked . | . . . . . . . . . . . . Non-combat . | . . . . . . . . . . . . Combat . | . . . . . . . . . . . . Robot Hacks Applied . | . . . . . . . . . . . . Relay Couplers Released 4 | . . . . . . . . . . . 4 Programmers 4 | . . . . . . . . . . . 4 Fabnet Peak Effective % . | . . . . . . . . . . . . Robots Rewired . | . . . . . . . . . . . . Allies Hacked . | . . . . . . . . . . . . Hacks Repelled . | . . . . . . . . . . . . Allies | -11 -10 -10 -8 -8 -7 -7 -7 -6 -6 -5 -4 -------- Run | Yrd Mat Sub Mat Sto Fac Low Low Fac DSF Fac Fac Total Allies 17 | . . . . 10 3 . 1 . . 3 . Largest Group 10 | . . . . 10 3 3 1 . . 1 . Highest-Rated Group 173 | . . . . 173 30 30 127 . . 10 . Highest-Rated Ally 127 | . . . . 29 10 10 127 . . 10 . Initial Warlord ECA Mod 9 | . . . . . . . . . . 9 8 Total Orders . | . . . . . . . . . . . . Ally Attacks 43 | . . . . 39 . 2 1 . . 1 . Total Damage 619 | . . . . 487 . 44 40 . . 48 . Kills 9 | . . . . 7 . 1 1 . . . . Allies Corrupted . | . . . . . . . . . . . . Allies Melted . | . . . . . . . . . . . . Intel | -11 -10 -10 -8 -8 -7 -7 -7 -6 -6 -5 -4 ------- Run | Yrd Mat Sub Mat Sto Fac Low Low Fac DSF Fac Fac Active Infowar (turns) 18593 | . 520 69 1468 5981 8765 1535 255 . . . . Optics 2343 | . . . 1464 879 . . . . . . . Sensors 55 | . . . . . . . 55 . . . . Structural 18510 | . 520 69 1440 5981 8765 1535 200 . . . . Robot Analysis Total 2 | . . . . 1 1 . . . . . . Derelict Logs Recovered 1 | . . . . . . 1 . . . . . Drone Launches . | . . . . . . . . . . . . Drone Recoveries . | . . . . . . . . . . . . Exploration | -11 -10 -10 -8 -8 -7 -7 -7 -6 -6 -5 -4 ------------- Run | Yrd Mat Sub Mat Sto Fac Low Low Fac DSF Fac Fac Turns Passed 23921 | 84 1681 69 1468 5981 8765 1535 458 200 518 1726 1436 Spaces Moved 8420 | 58 908 23 656 2030 2723 445 98 77 177 730 495 Core 86 | 28 3 . 1 . . . . . . . 54 Treads 4180 | . . . 530 2030 1620 . . . . . . Legs 4154 | 30 905 23 125 . 1103 445 98 77 177 730 441 Wheels . | . . . . . . . . . . . . Hover . | . . . . . . . . . . . . Flight . | . . . . . . . . . . . . Fastest Speed 50 | 50 120 190 145 145 225 333 260 260 120 182 121 Average Speed 235 | 121 160 190 155 233 285 333 330 260 210 188 196 Slowest Speed 750 | 350 350 190 700 259 750 333 405 260 260 252 350 Overloaded Moves . | . . . . . . . . . . . . Propulsion Burnouts . | . . . . . . . . . . . . Robots Hopped . | . . . . . . . . . . . . Potential Cave-ins . | . . . . . . . . . . . . Cave-ins Triggered 1 | . . . . . . . . . . 1 . Exploration Rate (%) 40 | 4 97 3 50 97 55 55 19 2 79 14 12 Regions Visited 11 Branch Regions 4 Pre-discovered Areas 1 | . . . . 1 . . . . . . . Known Exits Taken 10 | 1 1 1 1 1 1 1 1 1 . 1 . Unknown Exits Taken . | . . . . . . . . . . . . Scrap Searched 3 | . . . . . . 3 . . . . . Spaces Dug 28 | . . . . 3 1 . . . . . 24 Terrain Destroyed 380 | . . . 4 3 69 . 2 . 2 95 205 Melee 4 | . . . . 3 1 . . . . . . Projectile 97 | . . . 4 . 6 . 2 . 1 47 37 AOE 278 | . . . . . 62 . . . . 48 168 Terrain Rammed . | . . . . . . . . . . . . Walls Destroyed . | . . . . . . . . . . . . Machines Disabled . | . . . . . . . . . . . . Actions | -11 -10 -10 -8 -8 -7 -7 -7 -6 -6 -5 -4 --------- Run | Yrd Mat Sub Mat Sto Fac Low Low Fac DSF Fac Fac Total 11081 | 68 1034 31 965 2954 3369 487 160 78 261 873 801 Wait 1433 | . 52 . 175 659 319 10 . . 14 3 201 Move 8409 | 57 907 22 655 2029 2722 444 97 76 176 729 495 Hop . | . . . . . . . . . . . . Pick Up 55 | 4 10 . 5 5 13 . . . 7 8 3 Fast Attach 97 | 7 2 . 15 6 21 3 4 . 10 10 19 Attach 71 | . 1 . 5 3 16 . 20 2 4 8 12 Detach 26 | . . . 5 2 11 . 1 . 1 4 2 Swap 70 | . 5 . 7 25 15 . 1 . 5 10 2 Drop 65 | . 7 . 10 7 15 3 1 . 10 7 5 Fire 741 | . 50 9 88 167 221 5 29 . 24 90 58 Melee 58 | . . . . 50 1 . 7 . . . . Ram 2 | . . . . . . . . . . . 2 Kick 9 | . . . . . 3 . . . . 4 2 Crush 1 | . . . . 1 . . . . . . . Escape Stasis 22 | . . . . . 12 . . . 10 . . Rewire 22 | . . . . . . 22 . . . . . Trap . | . . . . . . . . . . . . Miscellaneous . | . . . . . . . . . . . . Route ------- -11/Scrapyard -10/Materials (discovered 5 exits: *Mat x3 / *Min / *Sub) -10/Subcaves -8/Materials (discovered 3 exits: *Fac / *Sto x2) -8/Storage -7/Factory (discovered 5 exits: *Fac x2 / *Low x2 / Gar) -7/Lower Caves -7/Lower Caves -6/Factory -6/DSF -5/Factory (discovered 3 exits: *Fac / *Upp x2) -4/Factory (discovered 1 exit: *Res) History --------- Turn | Location | Event 10 | -11/Scrapyard | Identified exit to Materials 10 | -11/Scrapyard | Discovered exit to Materials (range 14) 85 | -11/Scrapyard | Entered Materials 85 | -10/Materials | Evolved 1 slot: Utility x1 313 | -10/Materials | Build established: Hacker-Mutant 452 | -10/Materials | Identified exit to Materials 452 | -10/Materials | Discovered exit to Materials (range 15) 499 | -10/Materials | Identified exit to Subcaves 499 | -10/Materials | Discovered exit to Subcaves (range 6) 686 | -10/Materials | Discovered exit to Materials (range 14) 783 | -10/Materials | Repaired Assault Rifle 867 | -10/Materials | Discovered exit to Materials (range 12) 1220 | -10/Materials | Identified exit to Mines 1220 | -10/Materials | Discovered exit to Mines (range 12) 1766 | -10/Materials | Entered Subcaves 1822 | -10/Subcaves | Identified exit to Materials 1822 | -10/Subcaves | Discovered exit to Materials (range 9) 1835 | -10/Subcaves | Entered Materials 1835 | -8/Materials | Evolved 4 slots: Power x1, Propulsion x1, Utility x2 2261 | -8/Materials | Identified exit to Storage 2261 | -8/Materials | Discovered exit to Storage (range 4) 2393 | -8/Materials | Repaired Structural Scanner 2433 | -8/Materials | Repaired Assault Cannon 2841 | -8/Materials | Identified exit to Factory 2841 | -8/Materials | Discovered exit to Factory (range 16) 3303 | -8/Materials | Entered Storage 3456 | -8/Storage | Learned location of Armory (-3) 3962 | -8/Storage | Discovered exit to Factory (range 5) 4023 | -8/Storage | Repaired Adv. Treads+ 4112 | -8/Storage | Found Prototype Protection 4112 | -8/Storage | Identified Lgt. Regenerative Plating 4488 | -8/Storage | Build established: Hauler-Mutant 5012 | -8/Storage | Assisted by bots powering up and referring to "LRC-V3" 5313 | -8/Storage | Build established: Commander-Mutant 5382 | -8/Storage | Repaired Enh. Autogun 5489 | -8/Storage | Found Prototype Processor 5489 | -8/Storage | Identified Exp. Targeting Computer 5537 | -8/Storage | Lost 3 allies 5571 | -8/Storage | Destroyed 8 combat bots 6454 | -8/Storage | Lost 7 allies 6723 | -8/Storage | Build established: Hauler-Mutant 9284 | -8/Storage | Entered Factory 9284 | -7/Factory | Evolved 2 slots: Weapon x2 9333 | -7/Factory | Identified exit to Lower Caves 9333 | -7/Factory | Discovered exit to Lower Caves (range 16) 9591 | -7/Factory | Build established: Hauler-Gunner 12952 | -7/Factory | Identified exit to Factory 12952 | -7/Factory | Discovered exit to Factory (range 7) 13356 | -7/Factory | Garrison activated, responded to threat 13570 | -7/Factory | Identified exit to Garrison 13746 | -7/Factory | Garrison activated, responded to threat 14434 | -7/Factory | Destroyed 8 combat bots 16667 | -7/Factory | System corruption reached 10% 17355 | -7/Factory | Discovered exit to Factory (range 13) 17841 | -7/Factory | Discovered exit to Lower Caves (range 12) 17950 | -7/Factory | Fabricated B-36 Bruiser (x3) 18049 | -7/Factory | Entered Lower Caves 18049 | -7/Lower Caves | Accompanied by 3 allies 18210 | -7/Lower Caves | Entered a destroyed Warlord outpost 19061 | -7/Lower Caves | Learned Factory security intel 19420 | -7/Lower Caves | Identified exit to Lower Caves 19420 | -7/Lower Caves | Discovered exit to Lower Caves (range 15) 19584 | -7/Lower Caves | Entered another Lower Caves area 19729 | -7/Lower Caves | Attracted the attention of an 0b10 outpost 19773 | -7/Lower Caves | Core integrity fell below 50% 19805 | -7/Lower Caves | Destroyed 7 combat bots 19879 | -7/Lower Caves | Lost 18 parts (3p3n4u8w) 19881 | -7/Lower Caves | CL-ANK showed up to help 20003 | -7/Lower Caves | Discovered exit to Factory (range 12) 20042 | -7/Lower Caves | Entered Factory 20042 | -6/Factory | Evolved 2 slots: Power x1, Propulsion x1 20197 | -6/Factory | Build established: Hauler-Tank 20213 | -6/Factory | Identified exit to DSF 20242 | -6/Factory | Entered DSF 20266 | -6/DSF | Additional patrols routed to DSF 20616 | -6/DSF | Sterilization system engaged 20636 | -6/DSF | Ambient heat levels rising (+10) 20651 | -6/DSF | Ambient heat levels rising (+10) 20666 | -6/DSF | Ambient heat levels rising (+10) 20672 | -6/DSF | Identified exit to Factory 20672 | -6/DSF | Discovered exit to Factory (range 14) 20681 | -6/DSF | Ambient heat levels rising (+10) 20696 | -6/DSF | Ambient heat levels rising (+10) 20711 | -6/DSF | Ambient heat levels rising (+10) 20726 | -6/DSF | Ambient heat levels rising (+10) 20741 | -6/DSF | Ambient heat levels rising (+10) 20756 | -6/DSF | Ambient heat levels rising (+10) 20760 | -6/DSF | Entered Factory 20760 | -5/Factory | Evolved 2 slots: Utility x2 21024 | -5/Factory | Build established: Hacker-Mutant 21292 | -5/Factory | Identified exit to Upper Caves 21608 | -5/Factory | Build established: Scavenger-Mutant 21931 | -5/Factory | Fabricated B-36 Bruiser? 21948 | -5/Factory | Build established: Scavenger-Gunner 21968 | -5/Factory | Lost 3 allies 22059 | -5/Factory | Crushed by falling debris 22068 | -5/Factory | Garrison activated, responded to threat 22094 | -5/Factory | Lost 3 parts (1p1n1u) 22479 | -5/Factory | Identified exit to Factory 22479 | -5/Factory | Discovered exit to Factory (range 4) 22486 | -5/Factory | Entered another Factory area 22486 | -4/Factory | Evolved 2 slots: Utility x2 22637 | -4/Factory | Lost 4 parts (1p1n1u1w) 22876 | -4/Factory | Garrison activated, responded to threat 23212 | -4/Factory | Repaired Carbon-fiber Leg 23313 | -4/Factory | Spotted B-86 Titan 23419 | -4/Factory | Destroyed B-86 Titan 23442 | -4/Factory | Lost 8 parts (2p4n2u) 23457 | -4/Factory | Cargo convoy interrupted 23542 | -4/Factory | Lost 6 parts (3u3w) 23778 | -4/Factory | Found Prototype Processor 23778 | -4/Factory | Identified Exp. Melee Analysis Suite 23903 | -4/Factory | Identified exit to Research 23903 | -4/Factory | Discovered exit to Research (range 11) 23922 | -4/Factory | Self-destructed Last Messages --------------- 23908_ Acquired 4 matter. 23909_ Penetrated by Slug. 23909_ Hardcell Cannon destroyed. 23909_ Critical hit (Blast). 23909_ Knocked back. 23910_ X-77 Beamer destroyed. 23912_ Penetrated by Slug. 23913_ Knocked back. 23913_ Slug penetrates H-71 Marshal. 23915_ Penetrated by Slug. 23915_ Adv. Weight Redist. System destroyed. 23915_ Critical hit (Blast). 23916_ ALERT: Hostiles spotted, dispatching reinforcements to Terminal F006. 23917_ Mass Driver destroyed. 23917_ Knocked back. 23919_ Acquired 3 matter. 23919_ Penetrated by Slug. 23919_ Shield Leg destroyed. 23921_ Penetrated by Slug. Map ----- +----------------------------------------------------+ | ?????# #???? | | ?????# ######???? | | ?????# #######/###### #????????? | | ?????# # # #????????? | | ?????## ### # #????????? | | ####### # # # "F ??????????? | | ### # ""?????????????????? | | # # "??????????????????? | | """"""" # # ????????????????????? | | """"""" ### #??????????????????????? | | """"""" #?# #??????????????????????? | | """""" #?# #??????????????????????? | | ###############??????????????????????? | | #???????????????????????????? | | ???????????????????????? | | ??????????###??????????? | | #### ######## ??????????? #??????????? | | ####+########?? ?????????? #??????????? | | # #???? ??????????? #??????????? | | # """"""""" +???????????????? +??????????? | | # #???????????????? #??????????? | | + """"""""" #??????????????? #???? ?????? | | # #??????????????? # ! ?????? | | # """ """ #?????????????? ##????? | | # """T""" #??############ ????? | | ##+###############??# ; @% Y [% % ???? | | * =[###########; ! [ % #??? | | """"" * / [ % % H #??? | | """"" ![#################### < #??? | | """ !#??????????????????? ??????? | | #???????????????????? ????????? | | #???????????????????? # ?????????? | | ! #????????????????????? #????????????? | | ############?????????????????????####????????????? | | | | | | | | | | | | | | | | | | | | | | | | | | | | | | | | | +----------------------------------------------------+ Best States ------------- Heat Dissipation 81 Energy Generation 45 Energy Capacity 925 Matter Stores 643 Matter Capacity 650 Sight Range 18 Robot Scan Range 15 Terrain Scan Density 10 Additional Mass Support 9 Base Temperature (-) 150 Armor Coverage 225 Resistance: KI 35 Resistance: TH 35 Resistance: EX 35 Resistance: EM 35 Resistance: I 35 Resistance: S 35 Resistance: P 35 Core Shielding 30 Power Shielding 33 Utility Shielding 66 Weapon Shielding 33 Evasion (%) 55 Targeting Accuracy 12 Target Analysis 9 Armor Integrity Analysis 30 Recoil Reduction 3 Energy Filtering 30 Offensive Hacking 20 Authchip Count 1 Item Schematics ----------------- Assault Rifle | -8/Materials | Scanalyzed Imp. Terrain Scan Processor | -8/Storage | Hacked Matter Compressor | -7/Factory | Hacked Adv. Assault Cannon | -7/Factory | Scanalyzed Adv. Plasma Cannon | -5/Factory | Hacked Antimatter Reactor | -5/Factory | Hacked Robot Schematics ------------------ K-01 Serf | -8/Storage | Hacked B-36 Bruiser | -7/Factory | Hacked G-67 Veteran | -4/Factory | Hacked Fabricated ------------ B-36 Bruiser | x3 | -7/Factory B-36 Bruiser | x3 | -5/Factory Repaired ---------- Assault Rifle | 78% | -10/Materials Structural Scanner | 25% | -8/Materials Assault Cannon | 72% | -8/Materials Adv. Treads | 37% | -8/Storage Enh. Autogun | 73% | -8/Storage Carbon-fiber Leg | 32% | -4/Factory Studied --------- Assault Cannon | -8/Materials | Hacked Nuclear Core | -8/Materials | Hacked Adv. Treads | -8/Materials | Hacked Lgt. Nuclear Core | -8/Materials | Hacked Assault Rifle | -8/Materials | Hacked Powered Hammer | -7/Factory | Hacked Gauss Rifle | -7/Factory | Hacked Flexi-carbon Leg | -5/Factory | Hacked Alien Tech Used ----------------- None Achievements -------------- None Challenges ------------ None Game ------ Seed RecyclingSingularityFlakker Manual? 0 Play Time 02:16:41 Cumulative 2258.6 hours Start 2026.01.22 @ 14:03:03 End 2026.01.23 @ 07:09:17 Sessions 5 Manual Loads 0 Difficulty Explorer Special Mode None Game No. 1102 Rogue 62 Adventurer 0 Explorer 1040 Win Type - Total 12 Types 12/0/0/0/0/0/0/0/0/0 Lore% 66 Gallery% 72 Achievement% 48 Wizard Run 0 Options --------- Layout 1 ASCII 0 Keyboard 0 Movement Mouse Keybinds 0 Fullscreen 1 Font 48/Smallcaps Map View 50x35 Zoom Use 0% Tactical HUD 1 Map Filters NONE Filters NONE Steam 1 RUN: 9302aa56-0dd1-4afe-bd1f-f5a1b6f69ddb